{"text_format":"3","workbook":"xlsx","n_sheets":4,"sheets":["Формуляр за оферта","Данни за диаграма","Разбивка на разходите","Резюме на разходите по офертата"],"not_rendered":{"charts":1,"images":2,"defined_names":11},"read":"whole","date_system":"1900"}

{"sheet":"Формуляр за оферта","index":0,"n_rows":21,"n_cols":6,"rows_kept":21,"merged":[[0,1,0,4],[1,1,1,2],[7,1,8,1],[7,2,8,2],[10,1,10,5],[12,1,12,5],[14,1,14,5],[15,1,15,2],[15,4,15,5],[16,1,16,2],[16,4,16,5],[18,1,18,5],[19,1,19,2],[19,4,19,5],[20,1,20,2],[20,4,20,5]]}
[null,"Формуляр за оферта в строителството"]
[null,"Информация за собственика",null,null,"Информация за изпълнителя"]
[null,"Име","Въведете име на собственика в тази клетка",null,"Фирма","Въведете името на фирмата изпълнител в тази клетка"]
[null,"Адрес","Въведете адреса на собственика в тази клетка",null,"Име","Въведете името на изпълнителя в тази клетка"]
[null,"Град, област, пощ. код","Въведете града, щата и пощенския код на собственика в тази клетка",null,"Адрес","Въведете адреса на изпълнителя в тази клетка"]
[null,"Телефон","Въведете телефонния номер на собственика в тази клетка",null,"Град, област, пощ. код","Въведете град, щат и пощенски код на изпълнителя в тази клетка"]
[null,"Имейл","Въведете имейл адреса на собственика в тази клетка",null,"Телефон","Въведете телефонния номер на изпълнителя в тази клетка"]
[null,"Име на проект","Въведете име на проекта в тази клетка",null,"Имейл","Въведете имейл адреса на изпълнителя в тази клетка "]
[{"$nulls":4},"Дата на завършване","Въведете дата на завършване в тази клетка"]
[null,"Обхват на работата"]
[null,"Обхватът на работата на проекта се поставя тук. Въведете всички спецификации, които искате. \n\nПримерен текст: Това ще бъде макетен проект на сграда с голям набор от стълби. Ще използваме само 48x98mm и 38x184mm дървен материал, както и скоби за захващане, за да конструираме рамката. Стълбите ще бъдат изрязани от материала 48x98mm. Ще се използват не по-малко от 51mm дълги видии.  Всички пирони ще бъдат с дължина не по-малко от 76mm. Дебелината на дизайна трябва да издържа минимум 227kg на стъпало. Стъпалата ще бъдат изравнени с тези на къщата. Подвижна дъска ще бъде закачена за къщата. Изпълнителят ще се погрижи за почистването."]
[null,"Не са включени"]
[null,"Подробностите за проекта, които не са включени, се намират тук. Въведете всичко, което не е включено в тази оферта. \n\nПримерен текст: Няма да се инсталират парапети. Основата ще се подготви от собственика. Стълбите ще се боядисат от собственика."]
[null,"Предложение от фирмата"]
[null,"Предложението от фирмата е тук. Въведете общ преглед на предложението, включително кой предлага работата, очакваната дата на завършване и сумата на предложението.\n\nПримерен текст: Ние, Име на фирмата, предлагаме горепосочения обхват на работа, който трябва да бъде завършен до Дата на завършване, за сумата от Обща сума."]
[]
[null,"Подадено от (представител на фирмата)",null,null,"Дата"]
[null,"Приемане от собственика"]
[null,"Приемането от собственика се поставя тук. Въведете името на собственика в потвърждение, което включва датата на завършване и общата сума, посочена в предложението от фирмата. \n\nПримерен текст: Аз, Име на собственик, приемам горепосочения обхват на работа, предложен да бъде завършен до Дата на завършване за сумата от Обща сума."]
[]
[null,"Подадено от (собственик на дома или упълномощен представител)",null,null,"Дата"]

{"sheet":"Данни за диаграма","index":1,"n_rows":7,"n_cols":3,"rows_kept":7,"hidden":true}
[]
[null,null,"Общо"]
[null,{"$f":"INDEX(ЕлементиОферта[#Data],MATCH(1,ЕлементиОферта[Разходи, класирани],0),2)","v":"Труд"},{"$f":"INDEX(ЕлементиОферта[#Data],MATCH(1,ЕлементиОферта[Разходи, класирани],0),4)","v":200}]
[null,{"$f":"INDEX(ЕлементиОферта[#Data],MATCH(2,ЕлементиОферта[Разходи, класирани],0),2)","v":"48x98х3048мм дървен материал"},{"$f":"INDEX(ЕлементиОферта[#Data],MATCH(2,ЕлементиОферта[Разходи, класирани],0),4)","v":99.39999999999999}]
[null,{"$f":"INDEX(ЕлементиОферта[#Data],MATCH(3,ЕлементиОферта[Разходи, класирани],0),2)","v":"Скоби за захващане"},{"$f":"INDEX(ЕлементиОферта[#Data],MATCH(3,ЕлементиОферта[Разходи, класирани],0),4)","v":74.7}]
[null,{"$f":"INDEX(ЕлементиОферта[#Data],MATCH(4,ЕлементиОферта[Разходи, класирани],0),2)","v":"38x184x3048mm дървен материал"},{"$f":"INDEX(ЕлементиОферта[#Data],MATCH(4,ЕлементиОферта[Разходи, класирани],0),4)","v":33.75}]
[null,{"$f":"INDEX(ЕлементиОферта[#Data],MATCH(5,ЕлементиОферта[Разходи, класирани],0),2)","v":"Чифт ръкавици, кожа"},{"$f":"INDEX(ЕлементиОферта[#Data],MATCH(5,ЕлементиОферта[Разходи, класирани],0),4)","v":15.5}]

{"sheet":"Разбивка на разходите","index":2,"n_rows":14,"n_cols":6,"rows_kept":14,"merged":[[0,1,0,4],[1,1,1,4]]}
[null,"Разбивка на разходите",{"$nulls":3}," "]
[null,"Списък с материали и разходи"]
[null,"Бр.","Описание","Цена","Общо","Разходи, класирани"]
[null,{"v":5,"d":"5 "},"38x184x3048mm дървен материал",{"v":6.75,"d":"6.75 лв."},{"$f":"IFERROR(ЕлементиОферта[[#This Row],[Цена]]*ЕлементиОферта[[#This Row],[Бр.]], \"\")","v":{"v":33.75,"d":"33.75 лв."}},{"$f":"_xlfn.RANK.EQ(ЕлементиОферта[[#This Row],[Общо]],ЕлементиОферта[Общо])","v":4}]
[null,{"v":20,"d":"20 "},"48x98х3048мм дървен материал",{"v":4.97,"d":"4.97 лв."},{"$f":"IFERROR(ЕлементиОферта[[#This Row],[Цена]]*ЕлементиОферта[[#This Row],[Бр.]], \"\")","v":{"v":99.39999999999999,"d":"99.40 лв."}},{"$f":"_xlfn.RANK.EQ(ЕлементиОферта[[#This Row],[Общо]],ЕлементиОферта[Общо])","v":2}]
[null,{"v":30,"d":"30 "},"Скоби за захващане",{"v":2.49,"d":"2.49 лв."},{"$f":"IFERROR(ЕлементиОферта[[#This Row],[Цена]]*ЕлементиОферта[[#This Row],[Бр.]], \"\")","v":{"v":74.7,"d":"74.70 лв."}},{"$f":"_xlfn.RANK.EQ(ЕлементиОферта[[#This Row],[Общо]],ЕлементиОферта[Общо])","v":3}]
[null,{"v":2,"d":"2 "},"Китуя видии, 51mm",{"v":6.67,"d":"6.67 лв."},{"$f":"IFERROR(ЕлементиОферта[[#This Row],[Цена]]*ЕлементиОферта[[#This Row],[Бр.]], \"\")","v":{"v":13.34,"d":"13.34 лв."}},{"$f":"_xlfn.RANK.EQ(ЕлементиОферта[[#This Row],[Общо]],ЕлементиОферта[Общо])","v":6}]
[null,{"v":2,"d":"2 "},"Кутия пирони, 76mm",{"v":3.25,"d":"3.25 лв."},{"$f":"IFERROR(ЕлементиОферта[[#This Row],[Цена]]*ЕлементиОферта[[#This Row],[Бр.]], \"\")","v":{"v":6.5,"d":"6.50 лв."}},{"$f":"_xlfn.RANK.EQ(ЕлементиОферта[[#This Row],[Общо]],ЕлементиОферта[Общо])","v":7}]
[null,{"v":2,"d":"2 "},"Чифт ръкавици, кожа",{"v":7.75,"d":"7.75 лв."},{"$f":"IFERROR(ЕлементиОферта[[#This Row],[Цена]]*ЕлементиОферта[[#This Row],[Бр.]], \"\")","v":{"v":15.5,"d":"15.50 лв."}},{"$f":"_xlfn.RANK.EQ(ЕлементиОферта[[#This Row],[Общо]],ЕлементиОферта[Общо])","v":5}]
[null,{"v":2,"d":"2 "},"Труд",{"v":100,"d":"100.00 лв."},{"$f":"IFERROR(ЕлементиОферта[[#This Row],[Цена]]*ЕлементиОферта[[#This Row],[Бр.]], \"\")","v":{"v":200,"d":"200.00 лв."}},{"$f":"_xlfn.RANK.EQ(ЕлементиОферта[[#This Row],[Общо]],ЕлементиОферта[Общо])","v":1}]
[4,null,null,"Междинна сума",{"$f":"SUBTOTAL(109,ЕлементиОферта[Общо])","v":{"v":443.18999999999994,"d":"443.19 лв."}}]
[5,null,null,"Данъчен процент",{"v":0.075,"d":"7.50%"}]
[{"$nulls":3},"Данъци",{"$f":"IFERROR(ДанъчнаСтавка*ЕлементиОферта[[#Totals],[Общо]], \"\")","v":{"v":33.23924999999999,"d":"33.24 лв."}}]
[{"$nulls":3},"Обща сума",{"$f":"IFERROR(Данъци+ЕлементиОферта[[#Totals],[Общо]], \"\")","v":{"v":476.4292499999999,"d":"476.43 лв."}}]

{"sheet":"Резюме на разходите по офертата","index":3,"n_rows":3,"n_cols":4,"rows_kept":3}
[null,"Резюме на разходите по офертата"]
[null,"Разбивка на материали и разходи",null,"Бележки"]
[null,"Кръгова диаграма, показваща първите 5 разходи за материал. Данните се базират на таблицата \"Елементи на оферти\" в работния лист \"Разбивка на разходите\"",null,"Въведете бележки в тази клетка."]